[Event "*** Titled Tuesday Blitz"]
[Site "Chess.com"]
[Date "2021.04.06"]
[Round "7"]
[White "Savagelittlemole"]
[Black "olksuna"]
[Result "0-1"]
[WhiteElo "2496"]
[BlackElo "2672"]
[TimeControl "180+1"]
[EndTime "11:19:48 PDT"]
[Termination "olksuna won by resignation"]

1. e4 {[%clk 0:03:00.9]} 1... c5 {[%clk 0:02:59.5]} 2. Ne2 {[%clk 0:03:00.7]}
2... e6 {[%clk 0:02:56.2]} 3. g3 {[%clk 0:03:00.2]} 3... Nf6 {[%clk 0:02:48.4]}
4. Bg2 {[%clk 0:03:00.7]} 4... d6 {[%clk 0:02:47.9]} 5. O-O {[%clk 0:03:01.2]}
5... Be7 {[%clk 0:02:48]} 6. c3 {[%clk 0:03:01.8]} 6... O-O {[%clk 0:02:46.5]}
7. d4 {[%clk 0:03:02.4]} 7... Nc6 {[%clk 0:02:41.1]} 8. h3 {[%clk 0:03:02]} 8...
cxd4 {[%clk 0:02:36.5]} 9. cxd4 {[%clk 0:03:02.9]} 9... e5 {[%clk 0:02:37.1]}
10. Be3 {[%clk 0:03:00.7]} 10... Re8 {[%clk 0:02:35.1]} 11. Nbc3 {[%clk
0:02:59.4]} 11... Bf8 {[%clk 0:02:35]} 12. Qd2 {[%clk 0:02:50.6]} 12... exd4
{[%clk 0:02:26.1]} 13. Nxd4 {[%clk 0:02:51.5]} 13... Ne5 {[%clk 0:02:26.5]} 14.
b3 {[%clk 0:02:50.5]} 14... Bd7 {[%clk 0:02:22.8]} 15. f4 {[%clk 0:02:48.6]}
15... Ng6 {[%clk 0:02:21.3]} 16. Rfd1 {[%clk 0:02:36.8]} 16... Rc8 {[%clk
0:02:14.1]} 17. Rac1 {[%clk 0:02:37]} 17... Bc6 {[%clk 0:02:02.1]} 18. Nxc6
{[%clk 0:02:34.7]} 18... bxc6 {[%clk 0:02:03]} 19. b4 {[%clk 0:02:14.4]} 19...
a5 {[%clk 0:01:59.5]} 20. a3 {[%clk 0:02:13.6]} 20... axb4 {[%clk 0:01:59.5]}
21. axb4 {[%clk 0:02:14.5]} 21... Rb8 {[%clk 0:01:58.7]} 22. Qd4 {[%clk
0:02:09.5]} 22... Qe7 {[%clk 0:01:38.3]} 23. Bf2 {[%clk 0:02:01.3]} 23... Nd7
{[%clk 0:01:30.1]} 24. Qc4 {[%clk 0:01:53.5]} 24... Rec8 {[%clk 0:01:27.2]} 25.
Ba7 {[%clk 0:01:40]} 25... Rb7 {[%clk 0:01:23.8]} 26. Bf2 {[%clk 0:01:39.7]}
26... Nb6 {[%clk 0:01:19.1]} 27. Qa6 {[%clk 0:01:34.3]} 27... Ra8 {[%clk
0:01:14.7]} 28. Qe2 {[%clk 0:01:25.2]} 28... Ra3 {[%clk 0:01:08.1]} 29. b5
{[%clk 0:01:16.3]} 29... c5 {[%clk 0:00:37]} 30. e5 {[%clk 0:01:16.3]} 30... Rd7
{[%clk 0:00:37.6]} 31. exd6 {[%clk 0:01:12.6]} 31... Qxe2 {[%clk 0:00:33.8]} 32.
Nxe2 {[%clk 0:01:13.5]} 32... Rxd6 {[%clk 0:00:32.3]} 33. Rxd6 {[%clk
0:01:09.6]} 33... Bxd6 {[%clk 0:00:33.2]} 34. Bxc5 {[%clk 0:01:09]} 34... Bxc5+
{[%clk 0:00:30.8]} 35. Rxc5 {[%clk 0:01:09.9]} 35... Ne7 {[%clk 0:00:27.6]} 36.
Rc7 {[%clk 0:01:00.5]} 36... Kf8 {[%clk 0:00:23]} 37. Rb7 {[%clk 0:00:54.5]}
37... Nec8 {[%clk 0:00:22.5]} 38. Nd4 {[%clk 0:00:52]} 38... g6 {[%clk 0:00:16]}
39. Bc6 {[%clk 0:00:43.8]} 39... Rd3 {[%clk 0:00:10.7]} 40. Nf3 {[%clk
0:00:42.8]} 40... Kg7 {[%clk 0:00:07.4]} 41. Ne5 {[%clk 0:00:38.2]} 41... Rxg3+
{[%clk 0:00:06.3]} 42. Kh2 {[%clk 0:00:36.3]} 42... Rb3 {[%clk 0:00:05.9]} 43.
Rxf7+ {[%clk 0:00:36.4]} 43... Kg8 {[%clk 0:00:06]} 44. Rc7 {[%clk 0:00:35]}
44... Rb2+ {[%clk 0:00:06.9]} 45. Kg3 {[%clk 0:00:34.9]} 45... Nd6 {[%clk
0:00:05.8]} 46. Ng4 {[%clk 0:00:22.5]} 46... Nf5+ {[%clk 0:00:06.7]} 47. Kf3
{[%clk 0:00:20.3]} 47... Nd4+ {[%clk 0:00:06.9]} 48. Ke4 {[%clk 0:00:20.2]}
48... Nxc6 {[%clk 0:00:06.1]} 49. bxc6 {[%clk 0:00:19.5]} 49... Rc2 {[%clk
0:00:06.2]} 50. Nf6+ {[%clk 0:00:19.6]} 50... Kf8 {[%clk 0:00:06.7]} 51. Nxh7+
{[%clk 0:00:20]} 51... Ke8 {[%clk 0:00:06.8]} 52. Nf6+ {[%clk 0:00:19.9]} 52...
Kd8 {[%clk 0:00:07.3]} 53. Rh7 {[%clk 0:00:17.6]} 53... Rxc6 {[%clk 0:00:06.6]}
54. Rh8+ {[%clk 0:00:17.6]} 54... Ke7 {[%clk 0:00:06.7]} 55. Nd5+ {[%clk
0:00:17.8]} 55... Nxd5 {[%clk 0:00:06.8]} 56. Kxd5 {[%clk 0:00:18.7]} 56... Ra6
{[%clk 0:00:06.8]} 57. Ke5 {[%clk 0:00:17]} 57... Ra5+ {[%clk 0:00:05.1]} 58.
Ke4 {[%clk 0:00:17.3]} 58... Kf6 {[%clk 0:00:05.7]} 59. Rf8+ {[%clk 0:00:17.5]}
59... Kg7 {[%clk 0:00:05.9]} 60. Rd8 {[%clk 0:00:16.2]} 60... Ra3 {[%clk
0:00:05.6]} 61. Rd3 {[%clk 0:00:16.2]} 61... Ra4+ {[%clk 0:00:04.6]} 62. Kf3
{[%clk 0:00:16.5]} 62... Kf6 {[%clk 0:00:04.9]} 63. Rd6+ {[%clk 0:00:14.8]}
63... Kf5 {[%clk 0:00:04.7]} 64. Rd5+ {[%clk 0:00:15.2]} 64... Kf6 {[%clk
0:00:04.6]} 65. Kg4 {[%clk 0:00:15.2]} 65... Ra1 {[%clk 0:00:04.3]} 66. Rd6+
{[%clk 0:00:15.6]} 66... Kg7 {[%clk 0:00:04.8]} 67. Ra6 {[%clk 0:00:14.6]} 67...
Rxa6 {[%clk 0:00:04.1]} 0-1

[Event "*** Titled Tuesday Blitz"]
[Site "Chess.com"]
[Date "2021.04.06"]
[Round "7"]
[White "chessbia"]
[Black "LileKoridze"]
[Result "1-0"]
[WhiteElo "2342"]
[BlackElo "2450"]
[TimeControl "180+1"]
[EndTime "11:19:49 PDT"]
[Termination "chessbia won by checkmate"]

1. d4 {[%clk 0:03:00.9]} 1... Nf6 {[%clk 0:02:59.9]} 2. c4 {[%clk 0:03:00.7]}
2... e6 {[%clk 0:02:59.8]} 3. Nc3 {[%clk 0:03:00.6]} 3... Bb4 {[%clk 0:02:59.8]}
4. Qc2 {[%clk 0:03:00.9]} 4... O-O {[%clk 0:02:59.4]} 5. Nf3 {[%clk 0:02:59.1]}
5... d5 {[%clk 0:02:59.4]} 6. cxd5 {[%clk 0:02:58.3]} 6... exd5 {[%clk
0:03:00.3]} 7. Bf4 {[%clk 0:02:58.3]} 7... c6 {[%clk 0:03:00.3]} 8. e3 {[%clk
0:02:58]} 8... Re8 {[%clk 0:02:59.5]} 9. Bd3 {[%clk 0:02:56.9]} 9... Bd6 {[%clk
0:02:56.9]} 10. Bg3 {[%clk 0:02:55]} 10... Bg4 {[%clk 0:02:56]} 11. Ne5 {[%clk
0:02:52.8]} 11... Bh5 {[%clk 0:02:55.1]} 12. O-O {[%clk 0:02:52.3]} 12... Qe7
{[%clk 0:02:50.2]} 13. a3 {[%clk 0:02:50.9]} 13... Nbd7 {[%clk 0:02:50]} 14.
Nxd7 {[%clk 0:02:47.8]} 14... Qxd7 {[%clk 0:02:50.9]} 15. b4 {[%clk 0:02:44.8]}
15... Ng4 {[%clk 0:02:48.9]} 16. Bxh7+ {[%clk 0:02:38.1]} 16... Kh8 {[%clk
0:02:46.6]} 17. Bf5 {[%clk 0:02:38.1]} 17... Qe7 {[%clk 0:02:43.8]} 18. Bxg4
{[%clk 0:02:33.8]} 18... Bxg4 {[%clk 0:02:44.7]} 19. b5 {[%clk 0:02:32.5]} 19...
Bxg3 {[%clk 0:02:42.8]} 20. hxg3 {[%clk 0:02:33.4]} 20... Qd6 {[%clk 0:02:43.3]}
21. bxc6 {[%clk 0:02:32.7]} 21... bxc6 {[%clk 0:02:42.9]} 22. Na4 {[%clk
0:02:28.8]} 22... Re6 {[%clk 0:02:42.3]} 23. Rfc1 {[%clk 0:02:15.8]} 23... Rh6
{[%clk 0:02:41.8]} 24. Nc5 {[%clk 0:02:03.1]} 24... Qf6 {[%clk 0:02:39.7]} 25.
Qd2 {[%clk 0:01:45.6]} 25... Bf3 {[%clk 0:02:35.2]} 26. Qd3 {[%clk 0:01:06.5]}
26... Re8 {[%clk 0:02:09.5]} 27. Rab1 {[%clk 0:00:59.3]} 27... Rh7 {[%clk
0:01:44.1]} 28. Rb7 {[%clk 0:00:30.6]} 28... Qh6 {[%clk 0:01:05.3]} 29. Qxh7+
{[%clk 0:00:30]} 29... Kxh7 {[%clk 0:01:05.2]} 30. gxf3 {[%clk 0:00:30.9]} 30...
Rh8 {[%clk 0:01:04.9]} 31. Rcb1 {[%clk 0:00:25.6]} 31... Kg6 {[%clk 0:01:03.6]}
32. Kf1 {[%clk 0:00:25.1]} 32... Qh1+ {[%clk 0:00:58.1]} 33. Ke2 {[%clk
0:00:26]} 33... Qg2 {[%clk 0:00:57.9]} 34. Nd7 {[%clk 0:00:22.5]} 34... Rh2
{[%clk 0:00:54.7]} 35. Ne5+ {[%clk 0:00:22.4]} 35... Kh7 {[%clk 0:00:54.5]} 36.
Rf1 {[%clk 0:00:22.4]} 36... Qxg3 {[%clk 0:00:51.1]} 37. Rxf7 {[%clk 0:00:21.6]}
37... Qh4 {[%clk 0:00:46.9]} 38. Rxa7 {[%clk 0:00:20.4]} 38... c5 {[%clk
0:00:28.4]} 39. Ng4 {[%clk 0:00:19.5]} 39... Rg2 {[%clk 0:00:23.6]} 40. dxc5
{[%clk 0:00:19.2]} 40... Qd8 {[%clk 0:00:11.4]} 41. Rh1+ {[%clk 0:00:18.1]}
41... Kg8 {[%clk 0:00:11.4]} 42. Ra4 {[%clk 0:00:12.7]} 42... Qd7 {[%clk
0:00:08]} 43. Rf4 {[%clk 0:00:11.5]} 43... Qb7 {[%clk 0:00:06.3]} 44. Kf1 {[%clk
0:00:10.5]} 44... Rxg4 {[%clk 0:00:06.2]} 45. Rxg4 {[%clk 0:00:10.1]} 45... Qb1+
{[%clk 0:00:06.1]} 46. Kg2 {[%clk 0:00:10.6]} 46... Qa2 {[%clk 0:00:06.5]} 47.
Rh5 {[%clk 0:00:09.8]} 47... Kf7 {[%clk 0:00:04.5]} 48. Rhg5 {[%clk 0:00:09.5]}
48... Kf8 {[%clk 0:00:02.4]} 49. Rxg7 {[%clk 0:00:09.7]} 49... Qxa3 {[%clk
0:00:03]} 50. Rc7 {[%clk 0:00:09.1]} 50... Qa2 {[%clk 0:00:02.6]} 51. Rf4+
{[%clk 0:00:09.2]} 51... Kg8 {[%clk 0:00:02.7]} 52. Rg4+ {[%clk 0:00:07.6]}
52... Kf8 {[%clk 0:00:02.7]} 53. Rh4 {[%clk 0:00:07.9]} 53... Kg8 {[%clk
0:00:02.9]} 54. Rc8+ {[%clk 0:00:08.1]} 54... Kg7 {[%clk 0:00:03.2]} 55. Rc7+
{[%clk 0:00:08.1]} 55... Kf6 {[%clk 0:00:03.6]} 56. Rh6+ {[%clk 0:00:07.2]}
56... Kg5 {[%clk 0:00:04]} 57. Rh3 {[%clk 0:00:06.6]} 57... Qc4 {[%clk
0:00:03.8]} 58. Rg3+ {[%clk 0:00:06.7]} 58... Kf5 {[%clk 0:00:04.1]} 59. c6
{[%clk 0:00:07]} 59... Ke6 {[%clk 0:00:04.3]} 60. Rc8 {[%clk 0:00:06.5]} 60...
Qa6 {[%clk 0:00:03.3]} 61. Rh8 {[%clk 0:00:04.5]} 61... Kd6 {[%clk 0:00:01.7]}
62. Rh6+ {[%clk 0:00:04.9]} 62... Kc7 {[%clk 0:00:01.9]} 63. Rg7+ {[%clk
0:00:04.5]} 63... Kc8 {[%clk 0:00:02.4]} 64. Rh8# {[%clk 0:00:04.4]} 1-0

[Event "*** Titled Tuesday Blitz"]
[Site "Chess.com"]
[Date "2021.04.06"]
[Round "7"]
[White "Rafael_Ventura"]
[Black "Manukyan_Artak"]
[Result "1/2-1/2"]
[WhiteElo "2171"]
[BlackElo "2424"]
[TimeControl "180+1"]
[EndTime "11:19:55 PDT"]
[Termination "Game drawn by stalemate"]

1. e4 {[%clk 0:03:00.9]} 1... c6 {[%clk 0:02:59.7]} 2. d4 {[%clk 0:03:00.8]}
2... d5 {[%clk 0:03:00.6]} 3. Nc3 {[%clk 0:03:01.4]} 3... dxe4 {[%clk
0:03:00.2]} 4. Nxe4 {[%clk 0:03:02.3]} 4... Nf6 {[%clk 0:03:00.7]} 5. Nxf6+
{[%clk 0:03:02.8]} 5... exf6 {[%clk 0:03:01.6]} 6. Bc4 {[%clk 0:03:03.4]} 6...
Bd6 {[%clk 0:03:02.4]} 7. Ne2 {[%clk 0:03:03.8]} 7... Qc7 {[%clk 0:02:59]} 8.
O-O {[%clk 0:02:41.7]} 8... Bxh2+ {[%clk 0:02:57.7]} 9. Kh1 {[%clk 0:02:42.2]}
9... Bd6 {[%clk 0:02:55.7]} 10. Re1 {[%clk 0:02:41.4]} 10... O-O {[%clk
0:02:54.3]} 11. g3 {[%clk 0:02:27.6]} 11... b5 {[%clk 0:02:52.3]} 12. Bb3 {[%clk
0:02:26.3]} 12... Bb7 {[%clk 0:02:51.9]} 13. Kg1 {[%clk 0:02:25.1]} 13... Re8
{[%clk 0:02:49.5]} 14. Nf4 {[%clk 0:02:22.2]} 14... Nd7 {[%clk 0:02:45.8]} 15.
Bd2 {[%clk 0:02:18.9]} 15... Nf8 {[%clk 0:02:32.5]} 16. Qh5 {[%clk 0:02:08.1]}
16... a5 {[%clk 0:02:00.4]} 17. a4 {[%clk 0:02:07.7]} 17... bxa4 {[%clk
0:01:58.8]} 18. Bxa4 {[%clk 0:02:07.2]} 18... Ng6 {[%clk 0:01:55.7]} 19. Nd3
{[%clk 0:01:48.8]} 19... Bxg3 {[%clk 0:01:40.2]} 20. Nc5 {[%clk 0:01:37.7]}
20... Bd6 {[%clk 0:01:30.9]} 21. Bb3 {[%clk 0:01:26.4]} 21... Bxc5 {[%clk
0:01:16.5]} 22. dxc5 {[%clk 0:01:25.7]} 22... Rxe1+ {[%clk 0:00:47.8]} 23. Rxe1
{[%clk 0:01:24]} 23... a4 {[%clk 0:00:47.4]} 24. Ba2 {[%clk 0:01:21.9]} 24...
Qd7 {[%clk 0:00:42.7]} 25. Be3 {[%clk 0:01:03.8]} 25... Re8 {[%clk 0:00:40]} 26.
Rd1 {[%clk 0:01:03.7]} 26... Qe7 {[%clk 0:00:35.2]} 27. Rd6 {[%clk 0:00:56.1]}
27... Ne5 {[%clk 0:00:33.9]} 28. Kf1 {[%clk 0:00:49.4]} 28... Ba6+ {[%clk
0:00:33]} 29. Kg2 {[%clk 0:00:47.3]} 29... Bc4 {[%clk 0:00:32.7]} 30. b3 {[%clk
0:00:45]} 30... axb3 {[%clk 0:00:32]} 31. Bxb3 {[%clk 0:00:44.9]} 31... Bxb3
{[%clk 0:00:30.8]} 32. cxb3 {[%clk 0:00:45.3]} 32... g6 {[%clk 0:00:30.4]} 33.
Qe2 {[%clk 0:00:44.2]} 33... Nd7 {[%clk 0:00:25.8]} 34. Qd3 {[%clk 0:00:38.2]}
34... Ne5 {[%clk 0:00:23.5]} 35. Qe4 {[%clk 0:00:35]} 35... f5 {[%clk
0:00:18.9]} 36. Qd4 {[%clk 0:00:31.5]} 36... Ng4 {[%clk 0:00:18]} 37. Bf4 {[%clk
0:00:24.7]} 37... Qe4+ {[%clk 0:00:13.8]} 38. Qxe4 {[%clk 0:00:25.2]} 38... Rxe4
{[%clk 0:00:14.1]} 39. Kf3 {[%clk 0:00:25.8]} 39... Re6 {[%clk 0:00:12.6]} 40.
Rd8+ {[%clk 0:00:23.9]} 40... Kg7 {[%clk 0:00:12.6]} 41. b4 {[%clk 0:00:24.5]}
41... h5 {[%clk 0:00:12]} 42. Rc8 {[%clk 0:00:20.9]} 42... Kf6 {[%clk
0:00:10.7]} 43. b5 {[%clk 0:00:20.5]} 43... cxb5 {[%clk 0:00:09.7]} 44. c6
{[%clk 0:00:21.2]} 44... Ne5+ {[%clk 0:00:09.4]} 45. Bxe5+ {[%clk 0:00:21.5]}
45... Rxe5 {[%clk 0:00:09.7]} 46. Rb8 {[%clk 0:00:21.4]} 46... Rc5 {[%clk
0:00:09.4]} 47. Rb6 {[%clk 0:00:21]} 47... Ke5 {[%clk 0:00:09.2]} 48. Ke3 {[%clk
0:00:19.3]} 48... f4+ {[%clk 0:00:08.6]} 49. Kd3 {[%clk 0:00:19.2]} 49... g5
{[%clk 0:00:09.2]} 50. c7 {[%clk 0:00:18.7]} 50... Rxc7 {[%clk 0:00:09.2]} 51.
Rxb5+ {[%clk 0:00:19.3]} 51... Kf6 {[%clk 0:00:09.6]} 52. Ke4 {[%clk 0:00:19.6]}
52... Re7+ {[%clk 0:00:09.2]} 53. Kf3 {[%clk 0:00:20.2]} 53... Kg6 {[%clk
0:00:09.5]} 54. Rb6+ {[%clk 0:00:19.5]} 54... f6 {[%clk 0:00:10]} 55. Rb5 {[%clk
0:00:20.1]} 55... Re5 {[%clk 0:00:10.5]} 56. Rb6 {[%clk 0:00:19.6]} 56... Kf5
{[%clk 0:00:11.4]} 57. Rb8 {[%clk 0:00:19.4]} 57... g4+ {[%clk 0:00:11.8]} 58.
Kg2 {[%clk 0:00:20.3]} 58... h4 {[%clk 0:00:11.8]} 59. Rh8 {[%clk 0:00:20.5]}
59... h3+ {[%clk 0:00:12]} 60. Kg1 {[%clk 0:00:20.6]} 60... Re2 {[%clk
0:00:12.5]} 61. Rh5+ {[%clk 0:00:20.4]} 61... Ke4 {[%clk 0:00:12.7]} 62. Rh6
{[%clk 0:00:20.6]} 62... Kf3 {[%clk 0:00:13.2]} 63. Rxf6 {[%clk 0:00:19.2]}
63... Rxf2 {[%clk 0:00:11.5]} 64. Ra6 {[%clk 0:00:16.6]} 64... h2+ {[%clk
0:00:11.7]} 65. Kh1 {[%clk 0:00:16.6]} 65... g3 {[%clk 0:00:12.3]} 66. Ra3+
{[%clk 0:00:15.2]} 66... Ke4 {[%clk 0:00:12.4]} 67. Re3+ {[%clk 0:00:14.9]}
67... Kf5 {[%clk 0:00:11.7]} 68. Re5+ {[%clk 0:00:15]} 68... Kg4 {[%clk
0:00:11.5]} 69. Rg5+ {[%clk 0:00:14.5]} 69... Kf3 {[%clk 0:00:10.3]} 70. Rxg3+
{[%clk 0:00:14.8]} 70... Ke2 {[%clk 0:00:09.1]} 71. Re3+ {[%clk 0:00:15]} 71...
Kf1 {[%clk 0:00:08]} 72. Re1+ {[%clk 0:00:14.8]} 72... Kxe1 {[%clk 0:00:07.8]}
1/2-1/2

[Event "*** Titled Tuesday Blitz"]
[Site "Chess.com"]
[Date "2021.04.06"]
[Round "7"]
[White "tjychess"]
[Black "guillembaches"]
[Result "1-0"]
[WhiteElo "2637"]
[BlackElo "2503"]
[TimeControl "180+1"]
[EndTime "11:19:57 PDT"]
[Termination "tjychess won by checkmate"]

1. d4 {[%clk 0:03:00.9]} 1... Nf6 {[%clk 0:03:00.2]} 2. c4 {[%clk 0:03:00.5]}
2... e6 {[%clk 0:03:00.8]} 3. Nf3 {[%clk 0:03:00.1]} 3... d5 {[%clk 0:03:01.1]}
4. Nc3 {[%clk 0:03:00.4]} 4... Be7 {[%clk 0:03:01.4]} 5. Bf4 {[%clk 0:03:00.6]}
5... O-O {[%clk 0:02:58.7]} 6. e3 {[%clk 0:03:01.1]} 6... Nbd7 {[%clk
0:02:57.9]} 7. c5 {[%clk 0:03:00.9]} 7... b6 {[%clk 0:02:50.5]} 8. b4 {[%clk
0:03:00.4]} 8... a5 {[%clk 0:02:45.8]} 9. a3 {[%clk 0:02:59.2]} 9... c6 {[%clk
0:02:38.5]} 10. h3 {[%clk 0:02:57.8]} 10... h6 {[%clk 0:02:37.7]} 11. Bd3 {[%clk
0:02:52.3]} 11... Ba6 {[%clk 0:02:37.3]} 12. Bxa6 {[%clk 0:02:51.8]} 12... Rxa6
{[%clk 0:02:38.2]} 13. O-O {[%clk 0:02:36]} 13... Qc8 {[%clk 0:02:30.6]} 14. Qd3
{[%clk 0:02:23.7]} 14... Qb7 {[%clk 0:02:25.8]} 15. Rfc1 {[%clk 0:02:17.3]}
15... axb4 {[%clk 0:02:14.3]} 16. axb4 {[%clk 0:02:17.3]} 16... Rfa8 {[%clk
0:02:14.2]} 17. Rxa6 {[%clk 0:02:09.5]} 17... Rxa6 {[%clk 0:02:08.3]} 18. Qb1
{[%clk 0:01:03.8]} 18... b5 {[%clk 0:01:59.1]} 19. Nd2 {[%clk 0:01:00.4]} 19...
Bd8 {[%clk 0:01:55.5]} 20. Nb3 {[%clk 0:00:59.1]} 20... Qa8 {[%clk 0:01:49]} 21.
Qb2 {[%clk 0:00:57]} 21... Ne4 {[%clk 0:01:30.8]} 22. Nxe4 {[%clk 0:00:55.6]}
22... dxe4 {[%clk 0:01:30.7]} 23. Ra1 {[%clk 0:00:53.9]} 23... Rxa1+ {[%clk
0:01:28.4]} 24. Qxa1 {[%clk 0:00:54.2]} 24... Qxa1+ {[%clk 0:01:24.9]} 25. Nxa1
{[%clk 0:00:55.1]} 25... Nf6 {[%clk 0:01:25.1]} 26. Nc2 {[%clk 0:00:53]} 26...
Nd5 {[%clk 0:01:25.1]} 27. Bg3 {[%clk 0:00:48.8]} 27... g5 {[%clk 0:01:23.8]}
28. Kf1 {[%clk 0:00:48.7]} 28... f5 {[%clk 0:01:22.9]} 29. Bd6 {[%clk 0:00:46]}
29... Kf7 {[%clk 0:01:21.3]} 30. Ke2 {[%clk 0:00:46.4]} 30... f4 {[%clk
0:01:20]} 31. exf4 {[%clk 0:00:19.9]} 31... gxf4 {[%clk 0:01:20.9]} 32. f3
{[%clk 0:00:19.7]} 32... e3 {[%clk 0:01:10.9]} 33. g3 {[%clk 0:00:19.9]} 33...
Bg5 {[%clk 0:01:05.3]} 34. gxf4 {[%clk 0:00:09]} 34... Bxf4 {[%clk 0:01:05.1]}
35. Bxf4 {[%clk 0:00:08.1]} 35... Nxf4+ {[%clk 0:01:06]} 36. Kxe3 {[%clk
0:00:09]} 36... Nxh3 {[%clk 0:01:06.1]} 37. d5 {[%clk 0:00:06.8]} 37... cxd5
{[%clk 0:01:02.5]} 38. Nd4 {[%clk 0:00:06.7]} 38... e5 {[%clk 0:00:59.3]} 39.
Nxb5 {[%clk 0:00:07.1]} 39... Nf4 {[%clk 0:00:59.6]} 40. Nd6+ {[%clk 0:00:04.1]}
40... Ke6 {[%clk 0:00:58.1]} 41. b5 {[%clk 0:00:04.6]} 41... Kd7 {[%clk
0:00:54.2]} 42. Nf7 {[%clk 0:00:05]} 42... d4+ {[%clk 0:00:50.6]} 43. Ke4 {[%clk
0:00:05.2]} 43... Ke6 {[%clk 0:00:49.1]} 44. Nxe5 {[%clk 0:00:03.8]} 44... Nd5
{[%clk 0:00:48.8]} 45. Nd3 {[%clk 0:00:02.2]} 45... Nc3+ {[%clk 0:00:48.2]} 46.
Kxd4 {[%clk 0:00:02.6]} 46... Nxb5+ {[%clk 0:00:48.7]} 47. Kc4 {[%clk
0:00:03.4]} 47... Nc7 {[%clk 0:00:48.6]} 48. Nf4+ {[%clk 0:00:03.7]} 48... Kf5
{[%clk 0:00:49]} 49. Nd3 {[%clk 0:00:04]} 49... h5 {[%clk 0:00:49.6]} 50. c6
{[%clk 0:00:04.3]} 50... h4 {[%clk 0:00:49.8]} 51. Kc5 {[%clk 0:00:05.2]} 51...
h3 {[%clk 0:00:50.2]} 52. Nf2 {[%clk 0:00:05.6]} 52... Kf4 {[%clk 0:00:50]} 53.
Nxh3+ {[%clk 0:00:05.6]} 53... Kxf3 {[%clk 0:00:49.8]} 54. Ng5+ {[%clk
0:00:06.5]} 54... Kf4 {[%clk 0:00:49.7]} 55. Nf7 {[%clk 0:00:06.9]} 55... Kf5
{[%clk 0:00:49.1]} 56. Kd6 {[%clk 0:00:07]} 56... Nb5+ {[%clk 0:00:48.9]} 57.
Kd7 {[%clk 0:00:07.6]} 57... Kf6 {[%clk 0:00:48.1]} 58. Nd6 {[%clk 0:00:07.9]}
58... Na7 {[%clk 0:00:48]} 59. c7 {[%clk 0:00:07.8]} 59... Ke5 {[%clk
0:00:48.4]} 60. Nb5 {[%clk 0:00:06.7]} 60... Nxb5 {[%clk 0:00:13.2]} 61. c8=Q
{[%clk 0:00:05.6]} 61... Nd4 {[%clk 0:00:13.8]} 62. Qc5+ {[%clk 0:00:05.6]}
62... Ke4 {[%clk 0:00:14]} 63. Qc4 {[%clk 0:00:06]} 63... Ke5 {[%clk 0:00:13.6]}
64. Qd3 {[%clk 0:00:05.8]} 64... Nf5 {[%clk 0:00:13.6]} 65. Kc6 {[%clk
0:00:05.6]} 65... Ne7+ {[%clk 0:00:12.9]} 66. Kc5 {[%clk 0:00:06]} 66... Nf5
{[%clk 0:00:13.3]} 67. Qe2+ {[%clk 0:00:06.6]} 67... Kf4 {[%clk 0:00:13.4]} 68.
Kd5 {[%clk 0:00:06.6]} 68... Ng3 {[%clk 0:00:13.5]} 69. Qf2+ {[%clk 0:00:06.4]}
69... Kg4 {[%clk 0:00:13.9]} 70. Ke5 {[%clk 0:00:06.9]} 70... Nh5 {[%clk
0:00:14.1]} 71. Qf5+ {[%clk 0:00:06.4]} 71... Kh4 {[%clk 0:00:14.1]} 72. Qg6
{[%clk 0:00:06.8]} 72... Ng3 {[%clk 0:00:13.5]} 73. Kf4 {[%clk 0:00:07.3]} 73...
Nh5+ {[%clk 0:00:13.7]} 74. Kf3 {[%clk 0:00:07.6]} 74... Nf4 {[%clk 0:00:13]}
75. Qg4# {[%clk 0:00:07.7]} 1-0